[Event "Late-Titled-Tuesday-Blitz-October-10-2023"]
[Site "Chess.com"]
[Date "2023.10.10"]
[Round "11"]
[White "IngOscarArdila"]
[Black "KorolDimitriy75"]
[Result "1-0"]
[WhiteElo "2328"]
[BlackElo "2385"]
[TimeControl "180+1"]
[EndTime "15:59:47 PDT"]
[Termination "IngOscarArdila won on time"]

1. d4 {[%clk 0:02:58.9]} 1... Nf6 {[%clk 0:02:59.7]} 2. c4 {[%clk 0:02:58.8]}
2... c5 {[%clk 0:03:00]} 3. d5 {[%clk 0:02:58.6]} 3... b5 {[%clk 0:03:00.4]} 4.
cxb5 {[%clk 0:02:57.1]} 4... a6 {[%clk 0:03:00.9]} 5. bxa6 {[%clk 0:02:56.4]}
5... g6 {[%clk 0:03:00.7]} 6. Nc3 {[%clk 0:02:56.7]} 6... Bxa6 {[%clk
0:03:01.2]} 7. e4 {[%clk 0:02:57]} 7... Bxf1 {[%clk 0:03:02.1]} 8. Kxf1 {[%clk
0:02:57.6]} 8... d6 {[%clk 0:03:03]} 9. Nf3 {[%clk 0:02:57.9]} 9... Bg7 {[%clk
0:03:03.6]} 10. Qe2 {[%clk 0:02:57.9]} 10... O-O {[%clk 0:03:03.4]} 11. g3
{[%clk 0:02:58.4]} 11... Nbd7 {[%clk 0:03:00.3]} 12. Kg2 {[%clk 0:02:58.7]}
12... Ra7 {[%clk 0:02:50.7]} 13. Re1 {[%clk 0:02:58.2]} 13... Qa8 {[%clk
0:02:49.9]} 14. Bf4 {[%clk 0:02:57]} 14... Nb6 {[%clk 0:02:48.5]} 15. Rad1
{[%clk 0:02:51.9]} 15... Na4 {[%clk 0:02:45.9]} 16. Nxa4 {[%clk 0:02:43.5]}
16... Rxa4 {[%clk 0:02:46.8]} 17. e5 {[%clk 0:02:40.8]} 17... Nxd5 {[%clk
0:02:45]} 18. exd6 {[%clk 0:02:38.1]} 18... Nxf4+ {[%clk 0:02:23.3]} 19. gxf4
{[%clk 0:02:37.8]} 19... exd6 {[%clk 0:02:20.9]} 20. a3 {[%clk 0:02:22.1]} 20...
d5 {[%clk 0:01:49.7]} 21. Kg3 {[%clk 0:01:56.3]} 21... Rb8 {[%clk 0:01:21.7]}
22. Ne5 {[%clk 0:01:50.9]} 22... Qb7 {[%clk 0:01:06.3]} 23. Rd2 {[%clk
0:01:47.6]} 23... Re4 {[%clk 0:00:52.7]} 24. Qd1 {[%clk 0:01:45.2]} 24... Rxe1
{[%clk 0:00:28.7]} 25. Qxe1 {[%clk 0:01:44]} 25... d4 {[%clk 0:00:20.3]} 26. Qc1
{[%clk 0:01:36.7]} 26... Qd5 {[%clk 0:00:15.7]} 27. Rc2 {[%clk 0:01:35.9]} 27...
Bxe5 {[%clk 0:00:14.7]} 28. fxe5 {[%clk 0:01:19]} 28... Qxe5+ {[%clk 0:00:15.6]}
29. f4 {[%clk 0:01:19.5]} 29... Rb3+ {[%clk 0:00:12.6]} 30. Kf2 {[%clk
0:01:14.8]} 30... Qe4 {[%clk 0:00:12.2]} 31. Re2 {[%clk 0:01:03.1]} 31... Qf3+
{[%clk 0:00:06.9]} 32. Ke1 {[%clk 0:00:56.1]} 1-0

[Event "Late-Titled-Tuesday-Blitz-October-10-2023"]
[Site "Chess.com"]
[Date "2023.10.10"]
[Round "11"]
[White "Byniolus"]
[Black "ThaBarWa"]
[Result "1-0"]
[WhiteElo "2686"]
[BlackElo "2434"]
[TimeControl "180+1"]
[EndTime "15:59:50 PDT"]
[Termination "Byniolus won by resignation"]

1. e3 {[%clk 0:03:00.9]} 1... e6 {[%clk 0:02:57.2]} 2. d3 {[%clk 0:03:01.8]}
2... f5 {[%clk 0:02:57.5]} 3. f3 {[%clk 0:03:02.7]} 3... Nf6 {[%clk 0:02:58]} 4.
g3 {[%clk 0:03:03.3]} 4... Be7 {[%clk 0:02:58.5]} 5. h3 {[%clk 0:03:03.9]} 5...
O-O {[%clk 0:02:59.2]} 6. Ne2 {[%clk 0:03:04.7]} 6... d6 {[%clk 0:02:59.8]} 7.
c3 {[%clk 0:03:05.4]} 7... e5 {[%clk 0:03:00.4]} 8. b3 {[%clk 0:03:06]} 8... Nc6
{[%clk 0:03:00.8]} 9. a3 {[%clk 0:03:06.5]} 9... a5 {[%clk 0:02:56.5]} 10. Bg2
{[%clk 0:03:06]} 10... Be6 {[%clk 0:02:50.9]} 11. O-O {[%clk 0:03:03.4]} 11...
Kh8 {[%clk 0:02:45.9]} 12. Kh2 {[%clk 0:03:01.4]} 12... Qd7 {[%clk 0:02:39.8]}
13. Bb2 {[%clk 0:03:00.4]} 13... Rg8 {[%clk 0:02:38.8]} 14. c4 {[%clk
0:02:57.7]} 14... Raf8 {[%clk 0:02:37]} 15. d4 {[%clk 0:02:55.7]} 15... exd4
{[%clk 0:02:28.2]} 16. exd4 {[%clk 0:02:56.6]} 16... d5 {[%clk 0:02:27.8]} 17.
c5 {[%clk 0:02:56.3]} 17... g5 {[%clk 0:02:25.6]} 18. Nbc3 {[%clk 0:02:49.4]}
18... Bd8 {[%clk 0:02:18.6]} 19. Qd3 {[%clk 0:02:42.6]} 19... Ne7 {[%clk
0:02:18]} 20. Rae1 {[%clk 0:02:38.8]} 20... c6 {[%clk 0:02:17.7]} 21. b4 {[%clk
0:02:35.3]} 21... axb4 {[%clk 0:02:12.2]} 22. axb4 {[%clk 0:02:36.2]} 22... Bc7
{[%clk 0:02:12.9]} 23. Bc1 {[%clk 0:02:23]} 23... h5 {[%clk 0:02:12.3]} 24. Kh1
{[%clk 0:02:20.5]} 24... Bb8 {[%clk 0:02:10]} 25. b5 {[%clk 0:02:17.7]} 25... h4
{[%clk 0:02:04.1]} 26. g4 {[%clk 0:02:13.6]} 26... Qc7 {[%clk 0:02:00]} 27. f4
{[%clk 0:02:06.9]} 27... fxg4 {[%clk 0:01:58.8]} 28. b6 {[%clk 0:02:03.7]} 28...
Qd7 {[%clk 0:01:41]} 29. fxg5 {[%clk 0:02:03.7]} 29... gxh3 {[%clk 0:01:37.9]}
30. Bf3 {[%clk 0:02:03.5]} 30... Ne4 {[%clk 0:01:32]} 31. Nxe4 {[%clk
0:01:56.8]} 31... dxe4 {[%clk 0:01:32]} 32. Bxe4 {[%clk 0:01:57.7]} 32... Bd5
{[%clk 0:01:27.6]} 33. Nc3 {[%clk 0:01:42.1]} 33... Qg4 {[%clk 0:01:04.8]} 34.
Nxd5 {[%clk 0:01:17]} 34... cxd5 {[%clk 0:01:03.7]} 35. Bf3 {[%clk 0:01:10.2]}
35... Qg3 {[%clk 0:01:01.4]} 36. Qe2 {[%clk 0:01:06]} 36... Ng6 {[%clk
0:00:46.2]} 37. Bxd5 {[%clk 0:00:51.9]} 37... Re8 {[%clk 0:00:26.2]} 38. Qh5+
{[%clk 0:00:51.7]} 1-0

[Event "Late-Titled-Tuesday-Blitz-October-10-2023"]
[Site "Chess.com"]
[Date "2023.10.10"]
[Round "11"]
[White "CarlosjPineror"]
[Black "The_Princess_Moon"]
[Result "1-0"]
[WhiteElo "2498"]
[BlackElo "2319"]
[TimeControl "180+1"]
[EndTime "15:59:57 PDT"]
[Termination "CarlosjPineror won on time"]

1. e4 {[%clk 0:03:00.9]} 1... c5 {[%clk 0:02:59.7]} 2. Nf3 {[%clk 0:02:58.9]}
2... a6 {[%clk 0:02:57.3]} 3. c3 {[%clk 0:02:57.7]} 3... d5 {[%clk 0:02:56]} 4.
e5 {[%clk 0:02:58.2]} 4... Bf5 {[%clk 0:02:54.8]} 5. d4 {[%clk 0:02:58.5]} 5...
e6 {[%clk 0:02:52.6]} 6. Bd3 {[%clk 0:02:58.4]} 6... Bg6 {[%clk 0:02:47.5]} 7.
O-O {[%clk 0:02:57.4]} 7... Nc6 {[%clk 0:02:45.5]} 8. a3 {[%clk 0:02:56.8]} 8...
c4 {[%clk 0:02:40.1]} 9. Bxg6 {[%clk 0:02:55.8]} 9... hxg6 {[%clk 0:02:41]} 10.
Bg5 {[%clk 0:02:55.5]} 10... Qb6 {[%clk 0:02:40.1]} 11. Nbd2 {[%clk 0:02:50.9]}
11... Na5 {[%clk 0:02:39.3]} 12. Rb1 {[%clk 0:02:49.5]} 12... Nh6 {[%clk
0:02:35.5]} 13. Qa4+ {[%clk 0:02:48.4]} 13... Nc6 {[%clk 0:02:03.8]} 14. b3
{[%clk 0:02:44.8]} 14... cxb3 {[%clk 0:01:59.2]} 15. Rxb3 {[%clk 0:02:44.3]}
15... Qa5 {[%clk 0:01:52.5]} 16. Qxa5 {[%clk 0:02:42.3]} 16... Nxa5 {[%clk
0:01:53.4]} 17. Rb6 {[%clk 0:02:42.5]} 17... Rb8 {[%clk 0:01:27.4]} 18. Rfb1
{[%clk 0:02:41.1]} 18... Kd7 {[%clk 0:01:27]} 19. a4 {[%clk 0:02:37]} 19... Nf5
{[%clk 0:01:08]} 20. g4 {[%clk 0:02:34.5]} 20... Ne7 {[%clk 0:01:05.8]} 21. Be3
{[%clk 0:02:32.7]} 21... Nc8 {[%clk 0:01:04.7]} 22. R6b2 {[%clk 0:02:28.3]}
22... Ba3 {[%clk 0:01:01.9]} 23. Rc2 {[%clk 0:02:27.7]} 23... Nc4 {[%clk
0:00:43.6]} 24. Nxc4 {[%clk 0:02:20.9]} 24... dxc4 {[%clk 0:00:44.5]} 25. Nd2
{[%clk 0:02:20.9]} 25... b5 {[%clk 0:00:33.5]} 26. axb5 {[%clk 0:02:06.6]} 26...
Rxb5 {[%clk 0:00:32.5]} 27. Ra1 {[%clk 0:02:03.8]} 27... Rb2 {[%clk 0:00:26.8]}
28. Rxb2 {[%clk 0:01:58.4]} 28... Bxb2 {[%clk 0:00:27.7]} 29. Rxa6 {[%clk
0:01:58.8]} 29... Bxc3 {[%clk 0:00:25.8]} 30. Nxc4 {[%clk 0:01:59.7]} 30... Rh4
{[%clk 0:00:20.7]} 31. f3 {[%clk 0:01:59.2]} 31... Rh3 {[%clk 0:00:19]} 32. Kg2
{[%clk 0:01:58.6]} 32... Rh4 {[%clk 0:00:18.3]} 33. Ra8 {[%clk 0:01:46.6]} 33...
Rh7 {[%clk 0:00:14.7]} 34. Rb8 {[%clk 0:01:37.5]} 34... f6 {[%clk 0:00:13.4]}
35. Rb7+ {[%clk 0:01:36.2]} 35... Kc6 {[%clk 0:00:11.1]} 36. Rf7 {[%clk
0:01:34.6]} 36... f5 {[%clk 0:00:08.2]} 37. h3 {[%clk 0:01:32.1]} 37... Rh8
{[%clk 0:00:06.4]} 38. Rxg7 {[%clk 0:01:31.4]} 38... fxg4 {[%clk 0:00:06.6]} 39.
hxg4 {[%clk 0:01:30.9]} 39... Rd8 {[%clk 0:00:06.5]} 40. Rxg6 {[%clk 0:01:30.1]}
40... Kd5 {[%clk 0:00:03.1]} 41. Nd2 {[%clk 0:01:26.8]} 41... Bxd2 {[%clk
0:00:02.1]} 42. Bxd2 {[%clk 0:01:27.7]} 42... Kxd4 {[%clk 0:00:02.6]} 43. Bf4
{[%clk 0:01:27.3]} 43... Kd3 {[%clk 0:00:02.2]} 44. Rxe6 {[%clk 0:01:26.7]}
44... Ke2 {[%clk 0:00:02.5]} 45. Rc6 {[%clk 0:01:25.2]} 45... Rf8 {[%clk
0:00:01.8]} 46. Rc2+ {[%clk 0:01:25.3]} 1-0

[Event "Late-Titled-Tuesday-Blitz-October-10-2023"]
[Site "Chess.com"]
[Date "2023.10.10"]
[Round "11"]
[White "Blackwhite017"]
[Black "flukeyNZ"]
[Result "0-1"]
[WhiteElo "2040"]
[BlackElo "2243"]
[TimeControl "180+1"]
[EndTime "16:00:00 PDT"]
[Termination "flukeyNZ won by checkmate"]

1. e4 {[%clk 0:03:00.9]} 1... e6 {[%clk 0:02:59.4]} 2. d3 {[%clk 0:03:00.6]}
2... d5 {[%clk 0:02:59.3]} 3. Nd2 {[%clk 0:03:00.9]} 3... c5 {[%clk 0:02:59.1]}
4. Ngf3 {[%clk 0:02:55.6]} 4... Nc6 {[%clk 0:02:57.7]} 5. g3 {[%clk 0:02:55.7]}
5... Bd6 {[%clk 0:02:57.8]} 6. Bg2 {[%clk 0:02:55.8]} 6... Nge7 {[%clk
0:02:53.6]} 7. O-O {[%clk 0:02:55.6]} 7... O-O {[%clk 0:02:53.1]} 8. Re1 {[%clk
0:02:53.6]} 8... f6 {[%clk 0:02:51.8]} 9. Nf1 {[%clk 0:02:41.1]} 9... Qc7 {[%clk
0:02:42]} 10. h4 {[%clk 0:02:29.8]} 10... Bd7 {[%clk 0:02:39.2]} 11. exd5 {[%clk
0:02:21]} 11... exd5 {[%clk 0:02:37.1]} 12. N1h2 {[%clk 0:02:16.7]} 12... Rae8
{[%clk 0:02:34]} 13. b3 {[%clk 0:02:08.7]} 13... b5 {[%clk 0:02:12.9]} 14. a4
{[%clk 0:02:08.1]} 14... b4 {[%clk 0:02:10.2]} 15. Bb2 {[%clk 0:02:07.1]} 15...
d4 {[%clk 0:02:09]} 16. Nd2 {[%clk 0:01:57.2]} 16... Ne5 {[%clk 0:02:07.7]} 17.
f4 {[%clk 0:01:51.9]} 17... Nf7 {[%clk 0:01:53.4]} 18. Nc4 {[%clk 0:01:49.7]}
18... Bc6 {[%clk 0:01:50.3]} 19. Bh3 {[%clk 0:01:45.4]} 19... Ba8 {[%clk
0:01:43.4]} 20. Re6 {[%clk 0:01:43.2]} 20... Qb7 {[%clk 0:01:39.8]} 21. Kf2
{[%clk 0:01:21.3]} 21... Bc7 {[%clk 0:01:25.2]} 22. Qe2 {[%clk 0:01:16.9]} 22...
Bd8 {[%clk 0:00:48.4]} 23. Re1 {[%clk 0:01:16.5]} 23... Ne5 {[%clk 0:00:16.7]}
24. Nxe5 {[%clk 0:01:03.1]} 24... fxe5 {[%clk 0:00:16.4]} 25. Qxe5 {[%clk
0:00:52.9]} 25... Ng6 {[%clk 0:00:16.3]} 26. Qxc5 {[%clk 0:00:49.9]} 26... Rxe6
{[%clk 0:00:14.3]} 27. Bxe6+ {[%clk 0:00:43.4]} 27... Kh8 {[%clk 0:00:14.3]} 28.
h5 {[%clk 0:00:38]} 28... Qg2# {[%clk 0:00:13.2]} 0-1

[Event "Late-Titled-Tuesday-Blitz-October-10-2023"]
[Site "Chess.com"]
[Date "2023.10.10"]
[Round "11"]
[White "Horokoskii"]
[Black "SEBAZZANO"]
[Result "1/2-1/2"]
[WhiteElo "2116"]
[BlackElo "2243"]
[TimeControl "180+1"]
[EndTime "16:00:07 PDT"]
[Termination "Game drawn by repetition"]

1. c4 {[%clk 0:02:55.8]} 1... Nf6 {[%clk 0:02:59.5]} 2. Nc3 {[%clk 0:02:53.8]}
2... c5 {[%clk 0:02:59.3]} 3. e4 {[%clk 0:02:48.6]} 3... Nc6 {[%clk 0:02:58.3]}
4. Nf3 {[%clk 0:02:46.4]} 4... d6 {[%clk 0:02:58.2]} 5. d4 {[%clk 0:02:45.1]}
5... cxd4 {[%clk 0:02:57.8]} 6. Nxd4 {[%clk 0:02:45.2]} 6... g6 {[%clk
0:02:57.6]} 7. Be3 {[%clk 0:02:44]} 7... Bg7 {[%clk 0:02:57.3]} 8. Be2 {[%clk
0:02:40.3]} 8... O-O {[%clk 0:02:56.8]} 9. O-O {[%clk 0:02:40.3]} 9... Bd7
{[%clk 0:02:55.2]} 10. f4 {[%clk 0:02:38.8]} 10... Nxd4 {[%clk 0:02:23.7]} 11.
Bxd4 {[%clk 0:02:36.7]} 11... Bc6 {[%clk 0:02:24.1]} 12. Bf3 {[%clk 0:02:36.2]}
12... a6 {[%clk 0:02:11.3]} 13. Qe2 {[%clk 0:02:29.2]} 13... Nd7 {[%clk
0:01:59.9]} 14. Bxg7 {[%clk 0:02:24.5]} 14... Kxg7 {[%clk 0:02:00.8]} 15. Rad1
{[%clk 0:02:24.1]} 15... Qa5 {[%clk 0:01:35.5]} 16. Kh1 {[%clk 0:02:09.1]} 16...
Rac8 {[%clk 0:01:31.7]} 17. a3 {[%clk 0:02:02]} 17... Rfd8 {[%clk 0:01:13.2]}
18. Nd5 {[%clk 0:02:01.4]} 18... Bxd5 {[%clk 0:01:10.7]} 19. exd5 {[%clk
0:02:02]} 19... Re8 {[%clk 0:01:01.1]} 20. Qd3 {[%clk 0:01:56]} 20... Qc5 {[%clk
0:00:54.4]} 21. Rc1 {[%clk 0:01:53.8]} 21... Nf6 {[%clk 0:00:53.2]} 22. f5
{[%clk 0:01:50.8]} 22... a5 {[%clk 0:00:50.1]} 23. fxg6 {[%clk 0:01:50.6]} 23...
hxg6 {[%clk 0:00:51]} 24. g4 {[%clk 0:01:41.8]} 24... Rh8 {[%clk 0:00:32.7]} 25.
g5 {[%clk 0:01:41.8]} 25... Nh5 {[%clk 0:00:32.5]} 26. Bg2 {[%clk 0:01:42.1]}
26... b5 {[%clk 0:00:19.1]} 27. b3 {[%clk 0:01:39.7]} 27... bxc4 {[%clk
0:00:18.8]} 28. bxc4 {[%clk 0:01:40.6]} 28... Rh7 {[%clk 0:00:11.1]} 29. Rf3
{[%clk 0:01:38.2]} 29... Rch8 {[%clk 0:00:10.1]} 30. h3 {[%clk 0:01:36.2]} 30...
f6 {[%clk 0:00:05.8]} 31. Qe4 {[%clk 0:01:25.5]} 31... Qc7 {[%clk 0:00:05.3]}
32. Re1 {[%clk 0:01:23.4]} 32... Re8 {[%clk 0:00:04.3]} 33. Qe6 {[%clk
0:01:15.1]} 33... Qc8 {[%clk 0:00:03.6]} 34. gxf6+ {[%clk 0:01:12.6]} 34... Nxf6
{[%clk 0:00:03.3]} 35. Rxf6 {[%clk 0:01:10.7]} 35... exf6 {[%clk 0:00:02.5]} 36.
Qxe8 {[%clk 0:01:08.8]} 36... Rxh3+ {[%clk 0:00:02.9]} 37. Bxh3 {[%clk
0:01:07.6]} 37... Qxh3+ {[%clk 0:00:02.5]} 38. Kg1 {[%clk 0:01:07.3]} 38... Qg3+
{[%clk 0:00:03]} 39. Kf1 {[%clk 0:01:05.2]} 39... Qf3+ {[%clk 0:00:03.3]} 40.
Kg1 {[%clk 0:01:05.4]} 40... Qg3+ {[%clk 0:00:03.7]} 41. Kf1 {[%clk 0:01:05.9]}
41... Qf3+ {[%clk 0:00:04.2]} 42. Kg1 {[%clk 0:01:06.3]} 42... Qg3+ {[%clk
0:00:04.7]} 1/2-1/2

[Event "Late-Titled-Tuesday-Blitz-October-10-2023"]
[Site "Chess.com"]
[Date "2023.10.10"]
[Round "11"]
[White "GMJustin"]
[Black "isainz"]
[Result "0-1"]
[WhiteElo "2167"]
[BlackElo "2033"]
[TimeControl "180+1"]
[EndTime "16:00:11 PDT"]
[Termination "isainz won on time"]

1. d4 {[%clk 0:02:51.9]} 1... d5 {[%clk 0:02:56.6]} 2. c4 {[%clk 0:02:51.2]}
2... e6 {[%clk 0:02:54.5]} 3. Nc3 {[%clk 0:02:50.9]} 3... a6 {[%clk 0:02:52.2]}
4. cxd5 {[%clk 0:02:48.1]} 4... exd5 {[%clk 0:02:52.4]} 5. Nf3 {[%clk
0:02:48.1]} 5... Nf6 {[%clk 0:02:30.4]} 6. Qb3 {[%clk 0:02:45.8]} 6... Ra7
{[%clk 0:02:16.4]} 7. Bg5 {[%clk 0:02:35.3]} 7... Be6 {[%clk 0:02:16.1]} 8. Bxf6
{[%clk 0:02:02.6]} 8... Qxf6 {[%clk 0:02:14.6]} 9. Nxd5 {[%clk 0:01:58.1]} 9...
Qd8 {[%clk 0:02:13.6]} 10. e4 {[%clk 0:01:49.5]} 10... c6 {[%clk 0:02:12.2]} 11.
Qb6 {[%clk 0:01:45.9]} 11... cxd5 {[%clk 0:02:06.4]} 12. Qxa7 {[%clk 0:01:44.7]}
12... Bb4+ {[%clk 0:02:00.8]} 13. Nd2 {[%clk 0:01:34.8]} 13... dxe4 {[%clk
0:01:58.2]} 14. d5 {[%clk 0:00:31.6]} 14... Bxd2+ {[%clk 0:01:46.3]} 15. Kxd2
{[%clk 0:00:30.2]} 15... Qxd5+ {[%clk 0:01:45.3]} 16. Ke3 {[%clk 0:00:11.7]}
16... Nc6 {[%clk 0:01:35.6]} 17. Qb6 {[%clk 0:00:03.8]} 17... O-O {[%clk
0:01:22.6]} 18. h4 {[%clk 0:00:03.9]} 18... Rd8 {[%clk 0:01:16.5]} 19. Kf4
{[%clk 0:00:03.7]} 19... Qd6+ {[%clk 0:00:40.8]} 20. Ke3 {[%clk 0:00:03.3]}
20... Qd2+ {[%clk 0:00:37]} 21. Kxe4 {[%clk 0:00:03.7]} 21... Qd5+ {[%clk
0:00:18.8]} 22. Ke3 {[%clk 0:00:02.8]} 22... Qe5+ {[%clk 0:00:15.6]} 23. Kf3
{[%clk 0:00:02.4]} 23... Nd4+ {[%clk 0:00:13]} 0-1

[Event "Late-Titled-Tuesday-Blitz-October-10-2023"]
[Site "Chess.com"]
[Date "2023.10.10"]
[Round "11"]
[White "nicholas_ilic"]
[Black "kreonx"]
[Result "0-1"]
[WhiteElo "2327"]
[BlackElo "2490"]
[TimeControl "180+1"]
[EndTime "16:00:15 PDT"]
[Termination "kreonx won by checkmate"]

1. e4 {[%clk 0:03:00.9]} 1... c6 {[%clk 0:02:56.6]} 2. d4 {[%clk 0:03:00.5]}
2... d5 {[%clk 0:02:57.5]} 3. e5 {[%clk 0:02:58.8]} 3... c5 {[%clk 0:02:57.3]}
4. dxc5 {[%clk 0:02:58.2]} 4... e6 {[%clk 0:02:56.6]} 5. a3 {[%clk 0:02:58.6]}
5... Bxc5 {[%clk 0:02:56]} 6. Nf3 {[%clk 0:02:57.3]} 6... Ne7 {[%clk 0:02:54.2]}
7. b4 {[%clk 0:02:57]} 7... Bb6 {[%clk 0:02:54.5]} 8. Bb2 {[%clk 0:02:52.4]}
8... Ng6 {[%clk 0:02:53.9]} 9. Bd3 {[%clk 0:02:51.9]} 9... a5 {[%clk 0:02:50.2]}
10. O-O {[%clk 0:02:48.7]} 10... axb4 {[%clk 0:02:49.6]} 11. axb4 {[%clk
0:02:49.6]} 11... Rxa1 {[%clk 0:02:49.9]} 12. Bxa1 {[%clk 0:02:49.9]} 12... O-O
{[%clk 0:02:45.9]} 13. g3 {[%clk 0:02:48.1]} 13... Qc7 {[%clk 0:02:41.7]} 14. b5
{[%clk 0:02:45.1]} 14... Nd7 {[%clk 0:02:41.3]} 15. Re1 {[%clk 0:02:43.9]} 15...
Nc5 {[%clk 0:02:40.7]} 16. Nbd2 {[%clk 0:02:40.4]} 16... Nxd3 {[%clk 0:02:40.7]}
17. cxd3 {[%clk 0:02:40.4]} 17... Bd7 {[%clk 0:02:41.1]} 18. Qb3 {[%clk
0:02:36.9]} 18... Rc8 {[%clk 0:02:38.6]} 19. Bd4 {[%clk 0:02:27.6]} 19... Ba5
{[%clk 0:02:35.1]} 20. Ra1 {[%clk 0:02:10.4]} 20... b6 {[%clk 0:02:34.5]} 21.
Qa3 {[%clk 0:02:02.3]} 21... Bxb5 {[%clk 0:02:27.7]} 22. Rb1 {[%clk 0:01:58.6]}
22... Ba6 {[%clk 0:02:24.5]} 23. Nb3 {[%clk 0:01:54.7]} 23... Qc2 {[%clk
0:02:15.4]} 24. Rc1 {[%clk 0:01:45.5]} 24... Qxd3 {[%clk 0:02:15]} 25. Rxc8+
{[%clk 0:01:44.7]} 25... Bxc8 {[%clk 0:02:15.9]} 26. Qd6 {[%clk 0:01:43.4]}
26... Qd1+ {[%clk 0:02:02.7]} 27. Kg2 {[%clk 0:01:42]} 27... Qxb3 {[%clk
0:02:00.3]} 28. Qd8+ {[%clk 0:01:38]} 28... Nf8 {[%clk 0:02:00.5]} 29. Qxc8
{[%clk 0:01:38.3]} 29... Qb5 {[%clk 0:01:57.4]} 30. Qb8 {[%clk 0:01:28.1]} 30...
h6 {[%clk 0:01:47.3]} 31. h4 {[%clk 0:01:22.6]} 31... Qb4 {[%clk 0:01:47.1]} 32.
h5 {[%clk 0:01:20.3]} 32... Kh7 {[%clk 0:01:47.2]} 33. Qe8 {[%clk 0:01:05.6]}
33... Kg8 {[%clk 0:01:44.9]} 34. Be3 {[%clk 0:01:00.4]} 34... Qc4 {[%clk
0:01:37.8]} 35. Nd4 {[%clk 0:00:56]} 35... Bb4 {[%clk 0:01:32.4]} 36. Nc6 {[%clk
0:00:53.1]} 36... Ba3 {[%clk 0:01:32.9]} 37. Ne7+ {[%clk 0:00:38.2]} 37... Bxe7
{[%clk 0:01:31.5]} 38. Qxe7 {[%clk 0:00:38.6]} 38... Qc6 {[%clk 0:01:29]} 39.
Bd4 {[%clk 0:00:34.9]} 39... Qd7 {[%clk 0:01:28.6]} 40. Qb4 {[%clk 0:00:33.9]}
40... Qc7 {[%clk 0:01:27.1]} 41. Bxb6 {[%clk 0:00:29]} 41... Qxe5 {[%clk
0:01:26.1]} 42. Bd4 {[%clk 0:00:27.4]} 42... Qe4+ {[%clk 0:01:24.3]} 43. f3
{[%clk 0:00:27.5]} 43... Qe2+ {[%clk 0:01:22.3]} 44. Bf2 {[%clk 0:00:26.2]}
44... Nd7 {[%clk 0:01:19.9]} 45. Qe7 {[%clk 0:00:24]} 45... Nf6 {[%clk
0:01:17.7]} 46. Qd8+ {[%clk 0:00:20.7]} 46... Kh7 {[%clk 0:01:17.3]} 47. Qf8
{[%clk 0:00:20.9]} 47... d4 {[%clk 0:01:15.4]} 48. Qxf7 {[%clk 0:00:19.2]} 48...
d3 {[%clk 0:01:14.9]} 49. Qg6+ {[%clk 0:00:18.9]} 49... Kg8 {[%clk 0:01:15]} 50.
g4 {[%clk 0:00:19.2]} 50... d2 {[%clk 0:01:14.6]} 51. g5 {[%clk 0:00:19.5]}
51... d1=Q {[%clk 0:01:14.1]} 52. gxf6 {[%clk 0:00:18.3]} 52... Qxf3+ {[%clk
0:01:14]} 53. Kh2 {[%clk 0:00:17.7]} 53... Qdh1# {[%clk 0:01:11]} 0-1

[Event "Late-Titled-Tuesday-Blitz-October-10-2023"]
[Site "Chess.com"]
[Date "2023.10.10"]
[Round "11"]
[White "jaskol95"]
[Black "GaiozNigalidze"]
[Result "1-0"]
[WhiteElo "2593"]
[BlackElo "2711"]
[TimeControl "180+1"]
[EndTime "16:00:17 PDT"]
[Termination "jaskol95 won by resignation"]

1. d4 {[%clk 0:03:00.9]} 1... Nf6 {[%clk 0:02:57.5]} 2. Nc3 {[%clk 0:03:01.1]}
2... c5 {[%clk 0:02:54.4]} 3. d5 {[%clk 0:02:59.8]} 3... d6 {[%clk 0:02:53.9]}
4. e4 {[%clk 0:02:59.9]} 4... g6 {[%clk 0:02:53.1]} 5. f4 {[%clk 0:03:00.3]}
5... Bg7 {[%clk 0:02:53.1]} 6. Nf3 {[%clk 0:03:01]} 6... Bg4 {[%clk 0:02:52.4]}
7. h3 {[%clk 0:02:57.4]} 7... Bxf3 {[%clk 0:02:51.9]} 8. Qxf3 {[%clk 0:02:58.3]}
8... O-O {[%clk 0:02:51.6]} 9. Be2 {[%clk 0:02:40.4]} 9... a6 {[%clk 0:02:51.5]}
10. a4 {[%clk 0:02:40.3]} 10... Nbd7 {[%clk 0:02:51.7]} 11. O-O {[%clk
0:02:40.4]} 11... Ne8 {[%clk 0:02:47.7]} 12. Be3 {[%clk 0:02:32.8]} 12... Rb8
{[%clk 0:02:46.9]} 13. Rab1 {[%clk 0:02:32.4]} 13... Qa5 {[%clk 0:02:46]} 14. e5
{[%clk 0:02:22.1]} 14... dxe5 {[%clk 0:02:33.3]} 15. f5 {[%clk 0:02:22.4]} 15...
Nd6 {[%clk 0:02:33.3]} 16. fxg6 {[%clk 0:02:21.4]} 16... hxg6 {[%clk 0:02:30.5]}
17. h4 {[%clk 0:02:08.7]} 17... Nf5 {[%clk 0:01:48.5]} 18. h5 {[%clk 0:02:07]}
18... Nxe3 {[%clk 0:01:45.4]} 19. Qxe3 {[%clk 0:02:05.1]} 19... e4 {[%clk
0:01:46]} 20. Qxe4 {[%clk 0:01:56.8]} 20... Nf6 {[%clk 0:01:43.4]} 21. Qh4
{[%clk 0:01:48.1]} 21... Qb4 {[%clk 0:01:33.6]} 22. Rf4 {[%clk 0:01:40.3]} 22...
c4 {[%clk 0:01:33.4]} 23. hxg6 {[%clk 0:01:19.1]} 23... fxg6 {[%clk 0:01:32.9]}
24. Bxc4 {[%clk 0:01:11.8]} 24... Qc5+ {[%clk 0:01:20.2]} 25. Kh1 {[%clk
0:01:10.7]} 25... b5 {[%clk 0:01:14.2]} 26. axb5 {[%clk 0:01:01.9]} 26... axb5
{[%clk 0:01:15.1]} 27. Bb3 {[%clk 0:01:02]} 27... Rbe8 {[%clk 0:01:10.2]} 28.
Rbf1 {[%clk 0:00:53.9]} 28... Nh7 {[%clk 0:00:22.7]} 29. d6+ {[%clk 0:00:52.4]}
29... e6 {[%clk 0:00:20.8]} 30. d7 {[%clk 0:00:48.1]} 30... Rd8 {[%clk 0:00:19]}
31. Rxf8+ {[%clk 0:00:46.2]} 31... Nxf8 {[%clk 0:00:15.4]} 32. Qxd8 {[%clk
0:00:42.4]} 32... Qh5+ {[%clk 0:00:15.2]} 33. Kg1 {[%clk 0:00:41.6]} 33... Bd4+
{[%clk 0:00:14.8]} 34. Rf2 {[%clk 0:00:41.6]} 34... Qf5 {[%clk 0:00:15]} 35.
Bxe6+ {[%clk 0:00:35.4]} 35... Qxe6 {[%clk 0:00:14.1]} 36. Qxf8+ {[%clk
0:00:35.2]} 1-0